fUST/lending_fUST_20250426
["ID","MTS","AMOUNT","RATE_DAILY","PERIOD"]
[359014372,1745640633251,-93305.82496587,0.0001643,2]
[359014497,1745640645860,-2889.6329444,0.0001643,2]
[359014498,1745640645966,-37937.21083554,0.0001643,2]
[359014499,1745640714021,186.72989881,0.00025,30]
[359014501,1745641052613,150.0,0.00025,30]
[359014574,1745641631122,-161.95359829,0.00015,3]
[359014575,1745641631148,-300.0,0.0001501,2]
[359014576,1745641631170,-500.0,0.00015011,2]
[359014577,1745641631193,-379.2725726,0.00015011,2]
[359014578,1745641631223,-500.0,0.00015011,2]
[359014579,1745641631252,-500.0,0.00015011,2]
[359014580,1745641631274,-500.0,0.00015011,2]
[359014581,1745641631302,-500.0,0.00015011,2]
[359014582,1745641631324,-75.76530335,0.00015011,2]
[359014600,1745641832699,-300.0,0.00015009,2]
[359014602,1745641832711,-462.31921696,0.00015009,2]
[359014604,1745641832724,-281.07941638,0.00015009,2]
[359014776,1745641840582,-456.60136666,0.00015009,2]
[359014777,1745641840592,-212.10937127,0.00015949,2]
[359014778,1745641840602,-509.88368072,0.00016,2]
[359014815,1745641846146,-500.0,0.00015009,2]
[359014816,1745641846158,-477.53919201,0.00015009,2]
[359014817,1745641846167,-4490.11631928,0.00016,2]
[359014818,1745641846177,-1721.9128121,0.00016273,2]
[359014819,1745641846187,-500.0,0.00016273,2]
[359014820,1745641846196,-374.34947455,0.00016273,2]
[359014822,1745641846205,-22734.85341129,0.00016274,2]
[359014824,1745641846215,-600.0,0.00016307,2]
[359014825,1745641846225,-1002.8613476,0.00016338,2]
[359014826,1745641846235,-160.0,0.00016381,2]
[359014827,1745641846244,-160.0,0.00016381,2]
[359014828,1745641846254,-160.0,0.00016381,2]
[359014829,1745641846263,-160.0,0.00016381,2]
[359014831,1745641846274,-12582.09293779,0.00016381,2]
[359014832,1745641846284,-313.17372804,0.00016381,2]
[359014833,1745641846294,-490.96027743,0.00016381,2]
[359014854,1745642828093,-335.3980576,0.0001467,2]
[359014855,1745642828117,-300.0,0.00015,2]
[359014856,1745642828146,-500.0,0.00015001,2]
[359014857,1745642828181,-181.04161547,0.00015001,2]
[359014929,1745643035990,-273.765942,0.00014354,2]
[359014931,1745643036000,-1520.5709615,0.00014468,2]
[359014932,1745643036013,-500.0,0.00014999,2]
[359014933,1745643036023,-500.0,0.00014999,2]
[359014934,1745643036033,-634.81646528,0.00014999,2]
[359014935,1745643036042,-500.0,0.00014999,2]
[359014936,1745643036052,-500.0,0.00014999,2]
[359014937,1745643036062,-500.0,0.00014999,2]
[359014938,1745643036072,-500.0,0.00014999,2]
[359014939,1745643036081,-500.0,0.00014999,2]
[359014940,1745643036093,-300.0,0.00014999,2]
[359014941,1745643036103,-1200.0,0.00014999,2]
[359014942,1745643036114,-500.0,0.00015294,2]
[359014943,1745643036124,-356.06002914,0.00015294,2]
[359014944,1745643036134,-15327.93489402,0.00015295,2]
[359014945,1745643036151,-8312.02104228,0.00015295,2]
[359014946,1745643036161,-1059.46135983,0.00015836,2]
[359014948,1745643036171,-157.3073361,0.000159,2]
[359014950,1745643036181,-157.3073361,0.000159,2]
[359014952,1745643036191,-566.8670154,0.000159,2]
[359014954,1745643036201,-157.3073361,0.000159,2]
[359014956,1745643036211,-566.8670154,0.000159,2]
[359014958,1745643036221,-2754.30916124,0.000159,2]
[359014960,1745643036230,-157.3073361,0.000159,2]
[359014962,1745643036240,-566.8670154,0.000159,2]
[359014964,1745643036250,-12582.09293779,0.00015933,2]
[359014966,1745643036259,-313.17372804,0.00015933,2]
[359014968,1745643036270,-160.0,0.00015934,2]
[359014969,1745643036280,-160.0,0.00015934,2]
[359014970,1745643036290,-160.0,0.00015934,2]
[359014971,1745643036299,-157.3073361,0.00016,2]
[359014972,1745643036309,-566.8670154,0.00016,2]
[359014973,1745643036319,-157.3073361,0.00016,2]
[359014974,1745643036329,-566.8670154,0.00016,2]
[359014975,1745643036339,-157.3073361,0.00016,2]
[359014976,1745643036349,-566.8670154,0.00016,2]
[359014977,1745643036359,-157.3073361,0.00016,2]
[359014978,1745643036368,-566.8670154,0.00016,2]
[359014979,1745643036378,-306.0,0.00016,2]
[359014980,1745643036388,-157.3073361,0.00016,2]
[359014981,1745643036397,-566.8670154,0.00016,2]
[359014982,1745643036408,-318.0053915,0.00016001,2]
[359014983,1745643036417,-157.3073361,0.000161,2]
[359014984,1745643036427,-566.8670154,0.000161,2]
[359014985,1745643036437,-157.3073361,0.000161,2]
[359014986,1745643036448,-566.8670154,0.000161,2]
[359014987,1745643036458,-157.3073361,0.000161,2]
[359014988,1745643036469,-566.8670154,0.000161,2]
[359014989,1745643036478,-157.3073361,0.000161,2]
[359014990,1745643036488,-566.8670154,0.000161,2]
[359014991,1745643036498,-157.3073361,0.000161,2]
[359014992,1745643036508,-566.8670154,0.000161,2]
[359014993,1745643036517,-157.3073361,0.000161,2]
[359014994,1745643036527,-566.8670154,0.000161,2]
[359014995,1745643036537,-157.3073361,0.000162,2]
[359014996,1745643036550,-566.8670154,0.000162,2]
[359014997,1745643036560,-157.3073361,0.000162,2]
[359014998,1745643036569,-566.8670154,0.000162,2]
[359014999,1745643036579,-566.8670154,0.000162,2]
[359015000,1745643036589,-566.8670154,0.000162,2]
[359015001,1745643036599,-1377.5302497,0.00016273,2]
[359015002,1745643036609,-157.3073361,0.000163,2]
[359015003,1745643036619,-566.8670154,0.000163,2]
[359015004,1745643036629,-157.3073361,0.000163,2]
[359015005,1745643036639,-566.8670154,0.000163,2]
[359015006,1745643036649,-157.3073361,0.000163,2]
[359015007,1745643036659,-566.8670154,0.000163,2]
[359015008,1745643036669,-566.8670154,0.000163,2]
[359015009,1745643036679,-302.5719547,0.000163,2]
[359015010,1745643036689,-1009.41891184,0.00016307,2]
[359015011,1745643036699,-421.06755229,0.00016333,2]
[359015012,1745643036708,-160.0,0.00016333,2]
[359015013,1745643036719,-840.35238838,0.00016333,2]
[359015014,1745643036730,-151.0,0.000164,2]
[359015015,1745643036740,-151.0,0.000164,2]
[359015016,1745643036750,-151.0,0.000164,2]
[359015017,1745643036759,-157.3073361,0.000164,2]
[359015018,1745643036770,-566.8670154,0.000164,2]
[359015019,1745643036780,-566.8670154,0.000164,2]
[359015020,1745643036792,-157.3073361,0.000164,2]
[359015021,1745643036803,-157.3073361,0.000164,2]
[359015022,1745643036813,-566.8670154,0.000164,2]
[359015023,1745643036825,-157.3073361,0.000164,2]
[359015024,1745643036835,-566.8670154,0.000164,2]
[359015025,1745643036845,-151.0,0.000164,2]
[359015026,1745643036855,-151.0,0.000164,2]
[359015027,1745643036864,-151.0,0.000164,2]
[359015028,1745643036874,-151.0,0.000164,2]
[359015029,1745643036883,-420.0,0.00016415,2]
[359015030,1745643036893,-408.12,0.0001642,3]
[359015031,1745643036902,-204.06,0.0001642,3]
[359015032,1745643036912,-612.18,0.0001642,3]
[359015033,1745643036922,-151.0,0.00016428,2]
[359015034,1745643036932,-152.55487127,0.00016428,2]
[359015035,1745643036942,-207.4,0.00016428,2]
[359015036,1745643036953,-40172.58244813,0.0001643,2]
[359015037,1745643036967,-7360.92308574,0.0001643,2]
[359015072,1745643038247,-160.0,0.00016331,2]
[359015075,1745643038258,-6446.70757329,0.0001643,2]
[359015079,1745643038298,-500.0,0.0001643,2]
[359015210,1745643046296,-157.3073361,0.00016,2]
[359015211,1745643046307,-566.8670154,0.00016,2]
[359015212,1745643046318,-1355.53031489,0.00016338,2]
[359015213,1745643046329,-95042.99719815,0.0001643,2]
[359015214,1745643046350,-2519.3797251,0.0001643,2]
[359015232,1745643530799,10000.0,0.00025,30]
[359015392,1745644239010,-238.45222602,0.00014899,2]
[359015394,1745644239020,-250.0,0.00014899,2]
[359015395,1745644239031,-292.05610688,0.00015307,2]
[359015455,1745644243605,-216.29694312,0.00015307,2]
[359015456,1745644243615,-285.5844402,0.00015313,2]
[359015457,1745644243625,-1006.48865395,0.00016,2]
[359015458,1745644243635,-318.0053915,0.00016126,2]
[359015459,1745644243645,-421.06755229,0.00016239,2]
[359015460,1745644243655,-160.0,0.00016239,2]
[359015461,1745644243665,-840.35238838,0.00016239,2]
[359015462,1745644243675,-310.18681826,0.00016269,2]
[359015463,1745644243684,-500.0,0.00016269,2]
[359015464,1745644243694,-500.0,0.00016269,2]
[359015465,1745644243703,-500.0,0.00016269,2]
[359015466,1745644243713,-636.74185065,0.00016269,2]
[359015467,1745644243723,-300.0,0.00016271,2]
[359015468,1745644243733,-1200.0,0.00016271,2]
[359015469,1745644243743,-1102.0241997,0.00016273,2]
[359015470,1745644243752,-868.1684015,0.00016338,2]
[359015472,1745644243762,-160.0,0.00016377,2]
[359015473,1745644243771,-160.0,0.00016377,2]
[359015474,1745644243781,-160.0,0.00016379,2]
[359015475,1745644243791,-160.0,0.00016379,2]
[359015477,1745644243800,-12582.09293779,0.00016379,2]
[359015478,1745644243810,-313.17372804,0.00016379,2]
[359015479,1745644243821,-114134.40194187,0.000164,2]
[359015480,1745644243831,-153.0,0.000164,2]
[359015481,1745644243841,-314.6146722,0.000164,2]
[359015482,1745644243852,-1111.3547535,0.000164,2]
[359015483,1745644243862,-157.3073361,0.000164,2]
[359015484,1745644243871,-566.8670154,0.000164,2]
[359015485,1745644243881,-566.8670154,0.000164,2]
[359015486,1745644243891,-204.06,0.0001642,3]
[359015487,1745644243901,-612.18,0.0001642,3]
[359015488,1745644243911,-151.0,0.00016428,2]
[359015489,1745644243922,-207.4,0.00016428,2]
[359015490,1745644243931,-186.712,0.00016429,2]
[359015491,1745644243941,-599.2420204,0.00016429,2]
[359015492,1745644243951,-566.6429029,0.00016429,2]
[359015493,1745644243962,-500.0,0.00016429,2]
[359015494,1745644243972,-221.46696571,0.00016429,2]
[359015495,1745644243982,-59363.49572703,0.0001643,2]
[359015527,1745644594860,344.38062826,0.00025,30]
[359015543,1745645108191,3000.0,0.00025,30]
[359015578,1745645165990,7900.0,0.000163,30]
[359015587,1745645235121,-555.0868421,0.00015332,2]
[359015588,1745645235142,-34.76996894,0.00015366,2]
[359015590,1745645248092,-242.03298396,0.00015366,2]
[359015591,1745645248115,-1377.0911513,0.00015392,2]
[359015592,1745645248138,-160.0,0.00015925,2]
[359015593,1745645248160,-318.0053915,0.0001607,2]
[359015594,1745645248182,-881.6193598,0.00016273,2]
[359015595,1745645248204,-228.18740756,0.00016306,2]
[359015598,1745645287596,7137.65023011,0.00025,30]
[359015616,1745645334701,5499.98554092,0.00025,30]
[359015617,1745645334733,4500.01445908,0.00025,30]
[359015619,1745645341747,10000.0,0.00025,30]
[359015621,1745645348777,10000.0,0.00025,30]
[359015624,1745645357182,10000.0,0.00025,30]
[359015625,1745645362425,10000.0,0.00025,30]
[359015626,1745645370359,10000.0,0.00025,30]
[359015628,1745645375791,10000.0,0.00025,30]
[359015629,1745645381885,10000.0,0.00025,30]
[359015630,1745645387227,10000.0,0.00025,30]
[359015632,1745645393039,10000.0,0.00025,30]
[359015633,1745645398869,10000.0,0.00025,30]
[359015634,1745645408280,10000.0,0.00025,30]
[359015636,1745645416301,10000.0,0.00025,30]
[359015637,1745645423803,10000.0,0.00025,30]
[359015639,1745645429803,10000.0,0.00025,30]
[359015653,1745645431695,-160.0,0.00016271,2]
[359015654,1745645431707,-160.0,0.00016299,2]
[359015655,1745645431717,-313.17372804,0.00016299,2]
[359015656,1745645431726,-160.0,0.00016299,2]
[359015657,1745645431736,-7021.30016289,0.00016299,2]
[359015668,1745645437443,10000.0,0.00025,30]
[359015670,1745645437759,-500.0,0.00016298,2]
[359015671,1745645437770,-356.75813242,0.00016298,2]
[359015672,1745645437783,-22.51444018,0.00016298,2]
[359015673,1745645437793,-477.48555982,0.00016298,2]
[359015892,1745645440115,-22.51444018,0.00016298,2]
[359015894,1745645440126,-308.48555982,0.00016298,2]
[359015898,1745645441995,-267.27974353,0.00016298,2]
[359015899,1745645442005,-500.0,0.00016298,2]
[359015900,1745645442015,-246.70385647,0.00016299,2]
[359015905,1745645443136,-928.32,0.00016299,2]
[359015906,1745645443148,-545.24708926,0.00016299,2]
[359015907,1745645443196,-3840.52182917,0.00016299,2]
[359015908,1745645443206,-421.06755229,0.00016299,2]
[359015909,1745645443215,-160.0,0.00016299,2]
[359015910,1745645443225,-840.35238838,0.00016299,2]
[359015911,1745645443234,-300.0,0.00016301,2]
[359015912,1745645443244,-1200.0,0.0001631,2]
[359015913,1745645443253,-458.05,0.00016362,2]
[359015914,1745645443263,-408.12,0.0001642,3]
[359015915,1745645443273,-151.0,0.00016428,2]
[359015916,1745645443284,-210.81104628,0.00016428,2]
[359015917,1745645443294,-186.712,0.00016429,2]
[359015918,1745645443303,-396.65003204,0.00016429,2]
[359015919,1745645443313,-500.0,0.00016429,2]
[359015920,1745645443322,-160.14743546,0.00016429,2]
[359015921,1745645443332,-500.0,0.00016429,2]
[359015922,1745645443341,-14905.29813573,0.0001643,2]
[359015923,1745645443352,-4549.99999025,0.0001643,2]
[359015924,1745645443364,-993.24590438,0.0001643,2]
[359015926,1745645443375,-3058.44186629,0.0001643,2]
[359015927,1745645443402,-2954.79151319,0.0001643,2]
[359015928,1745645443568,-550.73773191,0.0001643,2]
[359015929,1745645444554,10000.0,0.00025,30]
[359015957,1745645445799,-313.15230409,0.0001643,2]
[359015958,1745645445857,-23381.1912778,0.0001643,2]
[359015959,1745645445915,-5722.2042792,0.0001643,2]
[359015964,1745645449507,10000.0,0.00025,30]
[359015965,1745645455064,10000.0,0.00025,30]
[359015966,1745645462641,10000.0,0.00025,30]
[359015969,1745645467862,10000.0,0.00025,30]
[359015970,1745645474375,10000.0,0.00025,30]
[359015971,1745645479629,10000.0,0.00025,30]
[359015972,1745645485451,10000.0,0.00025,30]
[359015974,1745645492306,10000.0,0.00025,30]
[359015975,1745645497652,10000.0,0.00025,30]
[359015976,1745645504376,10000.0,0.00025,30]
[359015978,1745645519646,9590.0,0.00025,30]
[359016019,1745646442128,-300.0,0.0001489,2]
[359016020,1745646442151,-266.94989373,0.00014891,2]
[359016021,1745646442174,-408.10065352,0.00014891,2]
[359016022,1745646442196,-500.0,0.00014891,2]
[359016023,1745646442219,-30.43878792,0.00014891,2]
[359016055,1745646631929,-335.3980576,0.00014293,2]
[359016057,1745646631940,-191.37972228,0.00014791,2]
[359016059,1745646631951,-1262.35643392,0.00014792,2]
[359016061,1745646631962,-300.0,0.0001489,2]
[359016063,1745646631972,-1200.0,0.0001489,2]
[359016065,1745646631982,-300.53905854,0.00014891,2]
[359016067,1745646631993,-439.60286907,0.00014891,2]
[359016069,1745646632003,-500.0,0.00014891,2]
[359016071,1745646632015,-500.0,0.00014891,2]
[359016073,1745646632025,-500.0,0.00014891,2]
[359016075,1745646632037,-500.0,0.00014891,2]
[359016078,1745646632047,-500.0,0.00014891,2]
[359016079,1745646632057,-500.0,0.00014891,2]
[359016081,1745646632067,-500.0,0.00014891,2]
[359016083,1745646632077,-500.0,0.00014891,2]
[359016084,1745646632088,-500.0,0.00014891,2]
[359016085,1745646632100,-500.0,0.00014891,2]
[359016086,1745646632111,-628.143807,0.00014891,2]
[359016087,1745646632360,-500.0,0.00014891,2]
[359016088,1745646632371,-500.0,0.00014891,2]
[359016089,1745646632381,-500.0,0.00014891,2]
[359016090,1745646632391,-500.0,0.00014891,2]
[359016091,1745646632401,-19549.0732727,0.00014892,2]
[359016092,1745646632415,-16002.1466852,0.00014892,2]
[359016093,1745646632425,-500.0,0.00014892,2]
[359016095,1745646632435,-24900.0,0.00015284,2]
[359016096,1745646632445,-276.81906259,0.000158,2]
[359016097,1745646632455,-2682.88746282,0.000159,2]
[359016099,1745646632465,-318.0053915,0.00016025,2]
[359016101,1745646632476,-518.44325276,0.00016058,2]
[359016102,1745646632487,-276.81906257,0.00016065,2]
[359016103,1745646632497,-518.44325276,0.00016126,2]
[359016104,1745646632508,-160.0,0.00016152,2]
[359016105,1745646632518,-313.17372804,0.00016152,2]
[359016106,1745646632528,-421.06755229,0.00016153,2]
[359016108,1745646632538,-160.0,0.00016153,2]
[359016110,1745646632547,-840.35238838,0.00016153,2]
[359016112,1745646632557,-500.0,0.00016164,2]
[359016114,1745646632567,-500.0,0.00016164,2]
[359016116,1745646632577,-247.29926012,0.00016164,2]
[359016118,1745646632587,-250.0,0.00016173,2]
[359016120,1745646632598,-1000.0,0.00016173,2]
[359016122,1745646632607,-518.44325276,0.00016194,2]
[359016124,1745646632618,-518.44325276,0.00016262,2]
[359016126,1745646632629,-160.0,0.00016264,2]
[359016128,1745646632639,-160.0,0.00016266,2]
[359016129,1745646632649,-352.6477439,0.00016273,2]
[359016130,1745646632659,-420.0,0.00016298,2]
[359016131,1745646632669,-518.44325276,0.0001633,2]
[359016132,1745646632680,-1680.0,0.00016379,2]
[359016133,1745646632693,-15854.38480756,0.00016399,2]
[359016134,1745646632703,-566.8670154,0.000164,2]
[359016135,1745646632714,-566.8670154,0.000164,2]
[359016136,1745646632724,-33142.0,0.000164,2]
[359016137,1745646632734,-566.8670154,0.000164,2]
[359016138,1745646632745,-151.62935,0.000164,2]
[359016139,1745646632757,-151.0,0.000164,2]
[359016140,1745646632767,-151.0,0.000164,2]
[359016141,1745646632777,-151.0,0.000164,2]
[359016142,1745646632786,-151.0,0.000164,2]
[359016143,1745646632796,-151.0,0.000164,2]
[359016144,1745646632807,-151.0,0.000164,2]
[359016145,1745646632817,-151.0,0.000164,2]
[359016146,1745646632827,-151.0,0.00016428,2]
[359016147,1745646632836,-151.0,0.00016428,2]
[359016148,1745646632846,-207.4,0.00016428,2]
[359016149,1745646632855,-186.712,0.00016429,2]
[359016150,1745646632866,-160.0,0.00016429,2]
[359016151,1745646632878,-268879.42616741,0.0001643,2]
[359016152,1745646632888,-559.060322,0.0001643,2]
[359016153,1745646632898,-559.060322,0.0001643,2]
[359016154,1745646632909,-151.0,0.0001643,2]
[359016155,1745646632919,-151.0,0.0001643,2]
[359016156,1745646632929,-151.0,0.0001643,2]
[359016157,1745646632939,-151.0,0.0001643,2]
[359016158,1745646632950,-151.0,0.0001643,2]
[359016159,1745646632960,-151.0,0.0001643,2]
[359016160,1745646632970,-151.0,0.0001643,2]
[359016161,1745646632980,-151.0,0.0001643,2]
[359016162,1745646632990,-151.0,0.0001643,2]
[359016163,1745646632999,-161.82741771,0.00016437,2]
[359016164,1745646633010,-899.33,0.00016438,2]
[359016165,1745646633020,-151.0,0.00016438,2]
[359016166,1745646633029,-151.0,0.00016438,2]
[359016167,1745646633039,-151.0,0.00016438,2]
[359016168,1745646633049,-151.0,0.00016438,2]
[359016169,1745646633059,-152.856346,0.00016438,2]
[359016170,1745646633069,-151.0,0.00016438,2]
[359016171,1745646633078,-151.0,0.00016438,2]
[359016172,1745646633088,-151.0,0.00016438,2]
[359016173,1745646633097,-151.0,0.00016438,2]
[359016174,1745646633107,-221.742974,0.00016438,2]
[359016175,1745646633118,-151.0,0.00016438,2]
[359016176,1745646633128,-151.0,0.00016438,2]
[359016177,1745646633137,-151.0,0.00016438,2]
[359016178,1745646633147,-154.671948,0.00016438,2]
[359016179,1745646633158,-298.991286,0.00016438,2]
[359016180,1745646633167,-151.0,0.00016438,2]
[359016181,1745646633177,-155.185134,0.00016438,2]
[359016182,1745646633187,-151.0,0.00016438,2]
[359016183,1745646633197,-151.0,0.00016438,2]
[359016184,1745646633207,-151.0,0.00016438,2]
[359016185,1745646633217,-163.825198,0.00016438,2]
[359016186,1745646633227,-156.085157,0.00016438,2]
[359016187,1745646633236,-152.005274,0.00016438,2]
[359016188,1745646633246,-151.0,0.00016438,2]
[359016189,1745646633256,-153.859589,0.00016438,2]
[359016190,1745646633266,-151.0,0.00016438,2]
[359016191,1745646633275,-151.0,0.00016438,2]
[359016192,1745646633285,-151.0,0.00016438,2]
[359016193,1745646633296,-151.0,0.00016438,2]
[359016194,1745646633308,-283.877118,0.00016438,2]
[359016195,1745646633317,-154.573016,0.00016438,2]
[359016196,1745646633327,-154.065509,0.00016438,2]
[359016197,1745646633336,-151.0,0.00016438,2]
[359016198,1745646633347,-152.135073,0.00016438,2]
[359016199,1745646633356,-151.0,0.00016438,2]
[359016200,1745646633366,-151.0,0.00016438,2]
[359016201,1745646633376,-151.0,0.00016438,2]
[359016202,1745646633385,-151.0,0.00016438,2]
[359016203,1745646633395,-151.0,0.00016438,2]
[359016204,1745646633405,-151.0,0.00016438,2]
[359016205,1745646633415,-151.0,0.00016438,2]
[359016206,1745646633425,-151.0,0.00016438,2]
[359016207,1745646633436,-151.0,0.00016438,2]
[359016208,1745646633446,-288.944872,0.00016438,2]
[359016209,1745646633456,-2311.613219,0.00016438,2]
[359016210,1745646633466,-2311.613219,0.00016438,2]
[359016211,1745646633476,-2311.613219,0.00016438,2]
[359016212,1745646633486,-2311.613219,0.00016438,2]
[359016213,1745646633496,-2311.613214,0.00016438,2]
[359016214,1745646633506,-500.0,0.00016438,2]
[359016215,1745646633516,-500.0,0.00016438,2]
[359016216,1745646633526,-500.0,0.00016438,2]
[359016217,1745646633536,-500.0,0.00016438,2]
[359016218,1745646633545,-500.0,0.00016438,2]
[359016219,1745646633556,-500.0,0.00016438,2]
[359016220,1745646633566,-500.0,0.00016438,2]
[359016221,1745646633576,-500.0,0.00016438,2]
[359016222,1745646633587,-500.0,0.00016438,2]
[359016223,1745646633597,-505.07965685,0.00016438,2]
[359016224,1745646633607,-500.0,0.00016438,2]
[359016225,1745646633617,-151.0,0.00016438,2]
[359016226,1745646633627,-151.0,0.00016438,2]
[359016227,1745646633637,-155.729056,0.00016438,2]
[359016228,1745646633647,-151.0,0.00016438,2]
[359016229,1745646633658,-151.0,0.00016438,2]
[359016230,1745646633668,-151.0,0.00016438,2]
[359016231,1745646633679,-500.0,0.00016438,2]
[359016232,1745646633690,-173.757565,0.00016438,2]
[359016233,1745646633701,-500.0,0.00016438,2]
[359016234,1745646633711,-500.0,0.00016438,2]
[359016235,1745646633722,-507.11575988,0.00016438,2]
[359016236,1745646633733,-500.0,0.00016438,2]
[359016237,1745646633743,-500.0,0.00016438,2]
[359016238,1745646633754,-151.0,0.00016438,2]
[359016239,1745646633765,-151.0,0.00016438,2]
[359016240,1745646633776,-500.0,0.00016438,2]
[359016241,1745646633800,-151.0,0.00016438,2]
[359016242,1745646633810,-151.0,0.00016438,2]
[359016243,1745646633821,-151.0,0.00016438,2]
[359016244,1745646633832,-151.0,0.00016438,2]
[359016245,1745646633843,-151.0,0.00016438,2]
[359016246,1745646633853,-164.169845,0.00016438,2]
[359016247,1745646633864,-515.43504827,0.00016438,2]
[359016248,1745646633875,-500.0,0.00016438,2]
[359016249,1745646633886,-153.655065,0.00016438,2]
[359016250,1745646633896,-500.0,0.00016438,2]
[359016251,1745646633906,-153.655065,0.00016438,2]
[359016252,1745646633916,-153.655065,0.00016438,2]
[359016253,1745646633927,-153.655065,0.00016438,2]
[359016254,1745646633937,-153.655065,0.00016438,2]
[359016255,1745646633948,-153.655065,0.00016438,2]
[359016256,1745646633958,-153.655065,0.00016438,2]
[359016257,1745646633968,-153.655065,0.00016438,2]
[359016258,1745646633979,-153.655065,0.00016438,2]
[359016259,1745646633988,-153.655065,0.00016438,2]
[359016260,1745646633999,-153.655065,0.00016438,2]
[359016261,1745646634009,-153.655065,0.00016438,2]
[359016262,1745646634019,-500.0,0.00016438,2]
[359016263,1745646634029,-153.655065,0.00016438,2]
[359016264,1745646634039,-153.655065,0.00016438,2]
[359016265,1745646634050,-153.655065,0.00016438,2]
[359016266,1745646634060,-153.655065,0.00016438,2]
[359016267,1745646634070,-153.655065,0.00016438,2]
[359016268,1745646634081,-502.5525602,0.00016438,2]
[359016269,1745646634092,-153.655065,0.00016438,2]
[359016270,1745646634102,-153.655065,0.00016438,2]
[359016271,1745646634112,-153.655057,0.00016438,2]
[359016272,1745646634123,-151.0,0.00016438,2]
[359016273,1745646634133,-500.0,0.00016438,2]
[359016274,1745646634143,-154.721006,0.00016438,2]
[359016275,1745646634153,-500.0,0.00016438,2]
[359016276,1745646634164,-500.0,0.00016438,2]
[359016277,1745646634174,-500.0,0.00016438,2]
[359016278,1745646634184,-508.6073643,0.00016438,2]
[359016279,1745646634194,-500.0,0.00016438,2]
[359016280,1745646634204,-500.0,0.00016438,2]
[359016281,1745646634214,-500.0,0.00016438,2]
[359016282,1745646634223,-500.0,0.00016438,2]
[359016283,1745646634234,-501.80633912,0.00016438,2]
[359016284,1745646634244,-500.0,0.00016438,2]
[359016285,1745646634253,-501.20533999,0.00016438,2]
[359016286,1745646634263,-500.0,0.00016438,2]
[359016287,1745646634273,-151.0,0.00016438,2]
[359016288,1745646634283,-151.0,0.00016438,2]
[359016289,1745646634292,-507.19948176,0.00016438,2]
[359016290,1745646634302,-154.029933,0.00016438,2]
[359016291,1745646634312,-500.0,0.00016438,2]
[359016292,1745646634322,-562.1769711,0.00016438,2]
[359016293,1745646634332,-500.0,0.00016438,2]
[359016294,1745646634342,-500.0,0.00016438,2]
[359016295,1745646634352,-500.0,0.00016438,2]
[359016296,1745646634362,-500.0,0.00016438,2]
[359016297,1745646634371,-500.0,0.00016438,2]
[359016298,1745646634381,-500.0,0.00016438,2]
[359016299,1745646634391,-500.0,0.00016438,2]
[359016300,1745646634405,-500.0,0.00016438,2]
[359016301,1745646634415,-502.26902221,0.00016438,2]
[359016302,1745646634425,-500.0,0.00016438,2]
[359016303,1745646634434,-500.0,0.00016438,2]
[359016304,1745646634444,-210.22473416,0.00016438,2]
[359016305,1745646634454,-502.81283499,0.00016438,2]
[359016306,1745646634464,-500.0,0.00016438,2]
[359016307,1745646634475,-500.0,0.00016438,2]
[359016308,1745646634485,-500.0,0.00016438,2]